bitfinex/quotes_BTCUSD_20260308
["timestamp","ask_amount","ask_price","bid_price","bid_amount"]
[1772975219204,0.00148,67256.0,67245.0,0.07435497]
[1772975219592,0.07434391,67255.0,67242.0,0.07583497]
[1772975219987,0.00148,67256.0,67242.0,0.07583497]
[1772975220447,0.00148,67259.0,67243.0,0.01890114]
[1772975220650,0.00022001,67260.0,67243.0,0.01890114]
[1772975220857,0.00170001,67260.0,67243.0,0.01890114]
[1772975221063,0.00148,67264.0,67243.0,0.01890114]
[1772975221266,0.00148,67264.0,67245.0,0.01890114]
[1772975221504,0.07432871,67269.0,67244.0,0.07435607]
[1772975221505,0.07469348,67274.0,67244.0,0.07435607]
[1772975221675,0.07469303,67274.0,67248.0,0.01890114]
[1772975221883,0.00037001,67274.0,67250.0,0.01890114]
[1772975222084,0.00037001,67274.0,67250.0,0.17775669]
[1772975222236,0.00037001,67274.0,67251.0,0.01890114]
[1772975222237,0.07469305,67274.0,67251.0,0.01890114]
[1772975222446,0.00148,67277.0,67250.0,0.17775669]
[1772975222647,0.00022001,67270.0,67254.0,0.01922596]
[1772975223250,0.00022001,67270.0,67256.0,0.01922596]
[1772975223623,0.01177211,67264.0,67251.0,0.0003048]
[1772975223814,0.01817224,67261.0,67251.0,0.0003048]
[1772975224059,0.00011919,67261.0,67251.0,0.0003048]
[1772975224274,0.00011919,67261.0,67251.0,0.07465297]
[1772975224675,0.00011919,67261.0,67251.0,0.07565297]
[1772975225034,0.00011919,67261.0,67251.0,0.07813297]
[1772975225257,0.00011919,67261.0,67251.0,0.07713297]
[1772975225887,0.00011919,67261.0,67251.0,0.07613297]
[1772975226881,0.01946689,67260.0,67251.0,0.0017848]
[1772975227061,0.01178703,67259.0,67251.0,0.07613241]
[1772975227410,0.07434059,67258.0,67251.0,0.0017848]
[1772975227610,0.0743391,67260.0,67251.0,0.07613283]
[1772975228065,0.0758191,67260.0,67251.0,0.07613283]
[1772975228868,0.07581852,67260.0,67251.0,0.07613283]
[1772975229043,0.07581847,67260.0,67251.0,0.07613283]
[1772975229949,0.07603848,67260.0,67251.0,0.07613283]
[1772975231332,0.03229752,67261.0,67251.0,0.07613283]
[1772975231538,0.07433847,67260.0,67251.0,0.07613283]
[1772975233896,0.03229752,67261.0,67251.0,0.07613283]
[1772975234041,0.04412876,67261.0,67251.0,0.07613283]
[1772975236674,0.00148,67262.0,67251.0,0.07613283]
[1772975236996,0.07581498,67264.0,67251.0,0.07625202]
[1772975237202,0.08616982,67266.0,67251.0,0.09528511]
[1772975237203,0.00148,67265.0,67251.0,0.09528511]
[1772975237398,0.02043604,67265.0,67251.0,0.09528511]
[1772975237928,0.02043604,67265.0,67251.0,0.07625202]
[1772975238075,0.01895604,67265.0,67251.0,0.07625202]
[1772975238894,0.01895604,67265.0,67251.0,0.07645202]
[1772975241746,0.01895604,67265.0,67253.0,0.11871651]
[1772975242146,0.01895604,67265.0,67253.0,0.11902131]
[1772975244153,0.01895604,67265.0,67254.0,0.07434502]
[1772975245023,0.01895604,67265.0,67254.0,0.07464982]
[1772975245244,0.07433184,67266.0,67254.0,0.07464982]
[1772975245584,0.01624598,67265.0,67254.0,0.19336633]
[1772975246684,0.00170001,67267.0,67254.0,0.19336633]
[1772975247065,0.01794596,67267.0,67254.0,0.19336633]
[1772975247272,0.01624595,67266.0,67254.0,0.19336633]
[1772975248614,0.07433253,67266.0,67254.0,0.19336633]
[1772975248775,0.09057848,67266.0,67254.0,0.19336633]
[1772975249280,0.09057848,67266.0,67255.0,0.11871651]
[1772975249463,0.01624595,67266.0,67255.0,0.11871651]
[1772975249664,0.09057793,67266.0,67254.0,0.19336633]
[1772975250666,0.01624595,67266.0,67254.0,0.19336633]
[1772975250884,0.07603082,67267.0,67254.0,0.19336633]
[1772975251090,0.07603082,67267.0,67255.0,0.11871651]
[1772975251745,0.00022001,67267.0,67255.0,0.1377496]
[1772975252109,0.00022001,67267.0,67255.0,0.1380544]
[1772975252516,0.07455114,67267.0,67255.0,0.1380544]
[1772975252915,0.00022001,67267.0,67256.0,0.0743428]
[1772975253111,0.00022001,67267.0,67257.0,0.02060925]
[1772975253317,0.00148,67269.0,67257.0,0.02060925]
[1772975253551,0.0745475,67270.0,67257.0,0.02060925]
[1772975253929,0.07432246,67275.0,67257.0,0.00148]
[1772975253930,0.00022001,67274.0,67257.0,0.00148]
[1772975254152,0.00022001,67274.0,67262.0,0.01912925]
[1772975254372,0.00022001,67274.0,67263.0,0.00148]
[1772975255102,0.00022001,67274.0,67264.0,0.07433396]
[1772975255236,0.00022001,67274.0,67266.0,0.11882896]
[1772975255439,0.01623998,67273.0,67266.0,0.11882896]
[1772975255642,0.01623998,67273.0,67266.0,0.00148]
[1772975256061,0.01623998,67273.0,67265.0,0.11882896]
[1772975257095,0.01623998,67273.0,67264.0,0.19316292]
[1772975257590,0.01624008,67272.0,67264.0,0.19316292]
[1772975259700,0.01624008,67272.0,67264.0,0.07433396]
[1772975261918,0.00022001,67274.0,67264.0,0.07433396]
[1772975262423,0.01542936,67274.0,67264.0,0.07433396]
[1772975264383,0.00022001,67274.0,67264.0,0.07433396]
[1772975264702,0.07579859,67278.0,67265.0,0.01912925]
[1772975264907,0.07431859,67278.0,67265.0,0.01912925]
[1772975265225,0.01518879,67277.0,67264.0,0.07433396]
[1772975266199,0.01518879,67279.0,67264.0,0.07433396]
[1772975269334,0.08174964,67279.0,67264.0,0.07433396]
[1772975269535,0.08174964,67279.0,67265.0,0.01912925]
[1772975269536,0.00743208,67279.0,67265.0,0.01912925]
[1772975269715,0.00022001,67281.0,67265.0,0.01912925]
[1772975271513,0.00022001,67279.0,67267.0,0.01912925]
[1772975271830,0.01262113,67277.0,67266.0,0.00148]
[1772975272005,0.00022001,67279.0,67266.0,0.00148]
[1772975272423,0.07453753,67279.0,67266.0,0.00148]
[1772975272647,0.01262113,67278.0,67266.0,0.00148]
[1772975273707,0.08693978,67278.0,67267.0,0.07433065]
[1772975276360,0.01262113,67278.0,67267.0,0.07433065]
[1772975276781,0.07453753,67279.0,67267.0,0.07433065]
[1772975277149,0.00713259,67278.0,67267.0,0.07433065]
[1772975277734,0.00713259,67277.0,67267.0,0.07433065]
[1772975278962,0.08145241,67277.0,67267.0,0.07433065]
[1772975279844,0.00713259,67277.0,67267.0,0.07433065]
[1772975281449,0.00711503,67276.0,67267.0,0.07433065]
[1772975282766,0.09261476,67277.0,67263.0,0.07453435]
[1772975282767,0.01941159,67274.0,67263.0,0.07453435]
[1772975282970,0.00711503,67273.0,67264.0,0.05433356]
[1772975283150,0.00710999,67271.0,67264.0,0.05433356]
[1772975284988,0.00710999,67271.0,67263.0,0.07453435]
[1772975285193,0.07432728,67271.0,67263.0,0.0002]
[1772975285390,0.00710158,67270.0,67263.0,0.0002]
[1772975288332,0.00709295,67269.0,67259.0,0.07581915]
[1772975288535,0.00709295,67269.0,67259.0,0.07433915]
[1772975289712,0.00709295,67269.0,67259.0,0.07581915]
[1772975291323,0.07432954,67268.0,67259.0,0.07581915]
[1772975291501,0.00707835,67267.0,67259.0,0.07581915]
[1772975293325,0.08140915,67267.0,67259.0,0.07581915]
[1772975293532,0.08140915,67267.0,67259.0,0.00148]
[1772975294285,0.005,67266.0,67258.0,0.17775669]
[1772975294488,0.005,67266.0,67257.0,0.00148]
[1772975294980,0.005,67266.0,67256.0,0.07454259]
[1772975295530,0.005,67264.0,67256.0,0.07454259]
[1772975295917,0.005,67264.0,67259.0,0.0002]
[1772975299677,0.005,67263.0,67259.0,0.0002]
[1772975303665,0.07433396,67265.0,67259.0,0.0002]
[1772975304061,0.005,67264.0,67259.0,0.0002]
[1772975304566,0.005,67263.0,67252.0,0.0002]
[1772975304760,0.005,67263.0,67252.0,0.07602701]
[1772975305270,0.005,67263.0,67252.0,0.07454701]
[1772975305867,0.07433457,67264.0,67253.0,0.01852707]
[1772975306667,0.07433457,67264.0,67254.0,0.09287209]
[1772975306889,0.07939865,67264.0,67254.0,0.09287209]
[1772975307095,0.00506408,67264.0,67254.0,0.07434502]
[1772975307436,0.00506408,67264.0,67255.0,0.01852707]
[1772975308624,0.07433507,67263.0,67255.0,0.09287018]
[1772975308811,0.07433459,67264.0,67256.0,0.01852707]
[1772975309027,0.05433459,67264.0,67256.0,0.01852707]
[1772975309445,0.07581179,67266.0,67256.0,0.01852707]
[1772975310008,0.07433179,67266.0,67256.0,0.01852707]
[1772975310346,0.07999231,67266.0,67256.0,0.01852707]
[1772975311205,0.07433179,67266.0,67257.0,0.0743417]
[1772975311400,0.00594696,67265.0,67257.0,0.0743417]
[1772975311792,0.07433179,67266.0,67257.0,0.0743417]
[1772975311793,0.00594696,67263.0,67257.0,0.0743417]
[1772975314509,0.00594696,67263.0,67254.0,0.07454502]
[1772975314714,0.00022001,67264.0,67255.0,0.01933715]
[1772975314898,0.07580844,67269.0,67258.0,0.01933715]
[1772975316022,0.07432844,67269.0,67258.0,0.01933715]
[1772975316630,0.07432844,67269.0,67259.0,0.07433949]
[1772975319990,0.07432844,67269.0,67251.0,0.00031919]
[1772975320197,1.98233124,67267.0,67246.0,0.00168]
[1772975320312,0.26700112,67266.0,67246.0,0.00168]
[1772975320512,0.01830191,67265.0,67246.0,0.00168]
[1772975320777,0.00705576,67261.0,67246.0,0.00168]
[1772975320943,0.00705576,67257.0,67246.0,0.00168]
[1772975321151,0.00705576,67257.0,67239.0,0.0002]
[1772975321332,0.07582059,67258.0,67238.0,0.00148]
[1772975321333,0.00745259,67253.0,67238.0,0.00148]
[1772975321535,0.01830191,67251.0,67238.0,0.00148]
[1772975321733,0.00745259,67250.0,67238.0,0.00148]
[1772975323364,0.00769734,67248.0,67238.0,0.00148]
[1772975325361,0.07435054,67250.0,67239.0,0.01933715]
[1772975325798,0.00794544,67249.0,67239.0,0.01933715]
[1772975326000,0.00794544,67249.0,67238.0,0.00148]
[1772975327032,0.00794544,67249.0,67239.0,0.0002]
[1772975327533,0.00817409,67247.0,67239.0,0.0002]
[1772975330361,0.07435386,67246.0,67239.0,0.0002]
[1772975331363,0.08296731,67246.0,67239.0,0.0002]
[1772975331929,0.00861345,67245.0,67239.0,0.0002]
[1772975333072,0.00861345,67243.0,67239.0,0.0002]
[1772975333689,0.07435607,67244.0,67237.0,0.0002239]
[1772975334182,0.07435607,67244.0,67239.0,0.0002]
[1772975334386,0.08318051,67244.0,67239.0,0.0002]
[1772975337151,0.00923268,67243.0,67239.0,0.0002]
[1772975337351,0.07435607,67244.0,67239.0,0.0002]
[1772975337584,0.00923268,67243.0,67239.0,0.0002]
[1772975339554,0.07435828,67242.0,67237.0,0.0002239]
[1772975339722,0.07435828,67243.0,67237.0,0.0002239]
[1772975340274,0.07435557,67245.0,67237.0,0.07458748]
[1772975340481,0.07435557,67245.0,67237.0,0.09404381]
[1772975340853,0.07435557,67245.0,67239.0,0.0002]
[1772975341809,0.0839721,67245.0,67239.0,0.0002]
[1772975343304,0.00961653,67245.0,67239.0,0.0002]
[1772975343511,0.07435406,67246.0,67239.0,0.0002]
[1772975346126,0.07435406,67246.0,67239.0,0.0004107]
[1772975351822,0.07434833,67251.0,67240.0,0.01844781]
[1772975352023,0.07434833,67251.0,67241.0,0.00148]
[1772975352283,0.07434833,67251.0,67241.0,0.01992781]
[1772975353056,0.01069182,67250.0,67241.0,0.00148]
[1772975353493,0.01069182,67250.0,67240.0,0.0002107]
[1772975353494,0.08519818,67249.0,67242.0,0.00148]
[1772975354304,0.07435054,67249.0,67242.0,0.00148]
[1772975354725,0.01084764,67248.0,67242.0,0.00148]
[1772975355699,0.07435275,67247.0,67242.0,0.00148]
[1772975355915,0.08535228,67247.0,67242.0,0.00148]
[1772975356121,0.01099953,67246.0,67242.0,0.00148]
[1772975357449,0.07434944,67250.0,67242.0,0.00148]
[1772975357649,0.07434944,67250.0,67242.0,0.01992781]
[1772975358408,0.07456566,67254.0,67243.0,0.07435718]
[1772975358609,0.07456566,67254.0,67243.0,0.09280499]
[1772975359315,0.08585566,67254.0,67243.0,0.09280499]
[1772975359532,0.07434612,67253.0,67240.0,0.07456788]
[1772975359731,0.01129,67252.0,67243.0,0.00148]
[1772975361287,0.01142915,67250.0,67243.0,0.00148]
[1772975363479,0.07435054,67249.0,67243.0,0.00148]
[1772975363718,0.07456726,67252.0,67243.0,0.07583702]
[1772975363891,0.07456726,67252.0,67243.0,0.09428483]
[1772975364119,0.07456726,67252.0,67243.0,0.07583702]
[1772975364844,0.00022001,67252.0,67243.0,0.07583702]
[1772975365079,0.00022001,67254.0,67244.0,0.01844781]
[1772975365281,0.07449215,67257.0,67244.0,0.0188282]
[1772975365481,0.07449215,67257.0,67246.0,0.01844781]
[1772975365689,0.00015,67257.0,67246.0,0.01844781]
[1772975366022,0.00022001,67261.0,67249.0,0.01844781]
[1772975366247,0.00022001,67261.0,67251.0,0.01844781]
[1772975367196,0.00022001,67261.0,67251.0,0.0186967]
[1772975367633,0.00022001,67265.0,67252.0,0.07434723]
[1772975367824,0.0800796,67268.0,67256.0,0.00036884]
[1772975368026,0.0800796,67268.0,67257.0,0.01992781]
[1772975368334,0.07433108,67267.0,67257.0,0.01992781]
[1772975368856,0.00575,67268.0,67257.0,0.01992781]
[1772975369153,0.00575,67268.0,67257.0,0.02023798]
[1772975369331,0.07432761,67270.0,67258.0,0.000428]
[1772975369517,0.07432761,67270.0,67261.0,0.01844781]
[1772975369714,0.00022001,67271.0,67262.0,0.07433617]
[1772975369914,0.00022001,67271.0,67263.0,0.00148]
[1772975370152,0.01222381,67270.0,67263.0,0.00148]
[1772975370317,0.01222381,67270.0,67260.0,0.07433617]
[1772975370318,0.01222381,67269.0,67262.0,0.00148]
[1772975370538,0.01234295,67269.0,67262.0,0.00148]
[1772975371757,0.01234295,67269.0,67262.0,0.07581533]
[1772975371960,0.08667156,67269.0,67262.0,0.07581533]
[1772975372633,0.0001255,67272.0,67262.0,0.07581533]
[1772975372985,0.00022001,67276.0,67262.0,0.07593447]
[1772975373156,0.07454137,67276.0,67262.0,0.07593447]
[1772975373357,0.01067591,67275.0,67262.0,0.07593447]
[1772975373874,0.00022001,67276.0,67263.0,0.02839704]
[1772975374083,0.07454138,67276.0,67264.0,0.00148]
[1772975374265,0.00015,67274.0,67264.0,0.00148]
[1772975375657,0.01285423,67274.0,67264.0,0.00148]
[1772975375882,0.00022001,67278.0,67265.0,0.07433286]
[1772975376087,0.07453857,67278.0,67266.0,0.01850646]
[1772975376263,0.00022001,67274.0,67266.0,0.01850646]
[1772975376505,0.07453857,67278.0,67266.0,0.01850646]
[1772975376881,0.07453857,67278.0,67266.0,0.01833952]
[1772975377089,0.07453857,67278.0,67266.0,0.01817259]
[1772975377488,0.07431641,67280.0,67267.0,0.00021066]
[1772975377666,0.07431641,67280.0,67270.0,0.01850646]
[1772975377874,0.07431641,67280.0,67271.0,0.07580592]
[1772975379526,0.09239061,67287.0,67271.0,0.07580592]
[1772975379527,0.01291645,67299.0,67272.0,0.01850646]
[1772975379805,0.37153584,67309.0,67272.0,0.01850646]
[1772975379806,0.07430305,67292.0,67272.0,0.01850646]
[1772975379981,0.07430305,67292.0,67274.0,0.01850646]
[1772975380394,0.07430117,67294.0,67274.0,0.01850646]
[1772975380721,0.07484241,67291.0,67276.0,0.01850646]
[1772975380852,0.07484241,67291.0,67276.0,0.01833955]
[1772975381461,0.00053811,67291.0,67276.0,0.01833955]
[1772975382081,0.00053811,67291.0,67278.0,0.01850646]
[1772975383434,0.00022001,67287.0,67278.0,0.01850646]
[1772975384256,0.00022001,67287.0,67279.0,0.09282385]
[1772975385882,0.00053811,67291.0,67279.0,0.09282385]
[1772975386403,0.00053811,67291.0,67279.0,0.09232313]
[1772975388342,0.01288303,67290.0,67279.0,0.07381667]
[1772975388492,0.08718847,67290.0,67278.0,0.07431739]
[1772975388698,0.01288303,67290.0,67278.0,0.07431739]
[1772975389073,0.01288303,67290.0,67279.0,0.00148]
[1772975389479,0.01288303,67289.0,67279.0,0.00148]
[1772975390244,0.01288303,67289.0,67277.0,0.0743196]
[1772975390491,0.01288303,67289.0,67278.0,0.00148]
[1772975390667,0.01288303,67289.0,67279.0,0.07431739]
[1772975390971,0.01288303,67289.0,67280.0,0.00148]
[1772975391346,0.01288303,67289.0,67281.0,0.00148]
[1772975391726,0.01288303,67289.0,67279.0,0.07431739]
[1772975391914,0.01288303,67289.0,67280.0,0.00148]
[1772975392313,0.01288303,67289.0,67281.0,0.00148]
[1772975392765,0.01288303,67289.0,67282.0,0.07431408]
[1772975392975,0.01288303,67289.0,67282.0,0.07579408]
[1772975393727,0.01288303,67289.0,67282.0,0.07431408]
[1772975393933,0.01288303,67289.0,67282.0,0.07579408]
[1772975395284,0.0871896,67289.0,67282.0,0.07579408]
[1772975395488,0.01288303,67289.0,67282.0,0.07579408]
[1772975395648,0.08718981,67289.0,67282.0,0.07431408]
[1772975395851,0.08718981,67289.0,67282.0,0.07579408]
[1772975396113,0.01288303,67289.0,67282.0,0.07579408]
[1772975396658,0.01288303,67289.0,67282.0,0.07431408]
[1772975396863,0.01288303,67289.0,67282.0,0.07579408]
[1772975397277,0.08740951,67289.0,67282.0,0.07579408]
[1772975397495,0.08740951,67289.0,67282.0,0.07431408]
[1772975397735,0.08740951,67289.0,67282.0,0.07579408]
[1772975397937,0.01310304,67289.0,67282.0,0.07579408]
[1772975399517,0.01310304,67289.0,67282.0,0.07562719]
[1772975400730,0.09260812,67289.0,67282.0,0.00148]
[1772975400934,0.01288303,67288.0,67282.0,0.07579402]
[1772975401469,0.03096472,67288.0,67279.0,0.00148]
[1772975401699,0.01288303,67287.0,67279.0,0.00148]
[1772975401887,0.01288303,67287.0,67253.0,0.1487]
[1772975402128,0.03096472,67284.0,67256.0,0.07434254]
[1772975402334,1.130106,67283.0,67259.0,0.00148]
[1772975402535,0.01288303,67280.0,67258.0,0.07450862]
[1772975402682,0.14811584,67280.0,67258.0,0.07450862]
[1772975402910,0.0743207,67276.0,67258.0,0.07450862]
[1772975403139,0.01869503,67273.0,67258.0,0.07450862]
[1772975403315,0.01288303,67270.0,67257.0,0.00035]
[1772975403519,0.01288303,67270.0,67231.0,0.02444192]
[1772975403520,0.01288303,67266.0,67244.0,0.01691957]
[1772975403744,1.138152,67268.0,67244.0,0.01691957]
[1772975403745,0.01869503,67263.0,67244.0,0.09127521]
[1772975403978,0.01254775,67260.0,67244.0,0.08979521]
[1772975404149,0.11885134,67272.0,67244.0,0.08979521]
[1772975404150,0.01254775,67258.0,67244.0,0.08979521]
[1772975404362,0.01254775,67256.0,67244.0,0.08979521]
[1772975404533,0.01254775,67256.0,67244.0,0.09127521]
[1772975404731,0.01254775,67256.0,67244.0,0.09158351]
[1772975404949,0.07434081,67258.0,67244.0,0.09158351]
[1772975405147,0.07593995,67258.0,67245.0,0.01868427]
[1772975405595,0.01276798,67257.0,67245.0,0.01868427]
[1772975405734,0.01276798,67257.0,67245.0,0.0003083]
[1772975407136,0.01276798,67257.0,67246.0,0.07435386]
[1772975407561,0.08710984,67257.0,67246.0,0.07435386]
[1772975407765,0.08710984,67257.0,67246.0,0.07466216]
[1772975408177,0.01277468,67256.0,67246.0,0.07466216]
[1772975409468,0.07434283,67256.0,67246.0,0.07466216]
[1772975409693,0.01274149,67255.0,67246.0,0.07466216]
[1772975410987,0.01274149,67255.0,67246.0,0.07486216]
[1772975417473,0.07431851,67278.0,67246.0,0.07486216]
[1772975417708,0.08733764,67275.0,67249.0,0.01247604]
[1772975417926,0.08733764,67275.0,67253.0,0.01247604]
[1772975418145,0.08733764,67275.0,67256.0,0.01868427]
[1772975418343,0.01978129,67282.0,67260.0,0.01247604]
[1772975418344,0.00148,67281.0,67260.0,0.01247604]
[1772975418555,0.01261499,67280.0,67251.0,0.01247604]
[1772975418758,0.01261499,67276.0,67252.0,0.00148]
[1772975418993,0.01978129,67272.0,67253.0,0.00148]
[1772975419196,0.01978129,67270.0,67253.0,0.00248]
[1772975419395,0.01261499,67269.0,67253.0,0.00248]
[1772975419756,0.01261499,67268.0,67254.0,0.07582502]
[1772975420114,0.01261499,67264.0,67254.0,0.00148]
[1772975420417,0.01261499,67264.0,67253.0,0.07448252]
[1772975420687,0.01978129,67264.0,67253.0,0.07596252]
[1772975420867,0.01261499,67263.0,67253.0,0.07596252]
[1772975421270,0.01272494,67261.0,67250.0,0.0004]
[1772975421495,0.01272494,67259.0,67250.0,0.07474889]
[1772975422084,0.01272494,67257.0,67250.0,0.07474889]
[1772975423065,0.07433791,67261.0,67250.0,0.07474889]
[1772975423262,0.01269111,67260.0,67250.0,0.07474889]
[1772975424265,0.01269111,67258.0,67250.0,0.07474889]
[1772975427394,0.01280378,67262.0,67250.0,0.07474889]
[1772975428475,0.07433419,67264.0,67250.0,0.07474889]
[1772975428476,0.00148,67264.0,67252.0,0.00042259]
[1772975428803,0.00148,67264.0,67253.0,0.01868427]
[1772975428950,0.01280378,67268.0,67253.0,0.01868427]
[1772975429165,0.01294564,67266.0,67253.0,0.01868427]
[1772975429567,0.00148,67267.0,67250.0,0.07474889]
[1772975429568,0.00148,67272.0,67257.0,0.01868427]
[1772975429762,0.00148,67273.0,67257.0,0.01896009]
[1772975430049,0.01442564,67273.0,67257.0,0.01896009]
[1772975430426,0.07432512,67272.0,67258.0,0.07434059]
[1772975430602,0.01294564,67271.0,67258.0,0.07434059]
[1772975434133,0.07432733,67270.0,67258.0,0.07434059]
[1772975434334,0.01321762,67269.0,67258.0,0.07434059]
[1772975435186,0.01334793,67273.0,67259.0,0.01909752]
[1772975435403,0.01334793,67273.0,67258.0,0.07434059]
[1772975435601,0.01334793,67272.0,67258.0,0.07434059]
[1772975435795,0.01334793,67272.0,67259.0,0.00148]
[1772975436191,0.07432623,67271.0,67261.0,0.07433728]
[1772975436350,0.01334793,67270.0,67261.0,0.07433728]
[1772975441901,0.07432447,67273.0,67261.0,0.07433728]
[1772975442113,0.08811896,67273.0,67261.0,0.07433728]
[1772975442316,0.07432447,67273.0,67261.0,0.07433728]
[1772975442630,0.01379449,67272.0,67261.0,0.07433728]
[1772975444359,0.08812025,67272.0,67261.0,0.07433728]
[1772975444514,0.07432576,67272.0,67261.0,0.07433728]
[1772975444702,0.01390888,67271.0,67261.0,0.07433728]
[1772975446229,0.01390888,67271.0,67256.0,0.01909752]
[1772975446230,0.01390888,67271.0,67247.0,0.01909752]
[1772975446404,0.07454577,67272.0,67252.0,0.07582711]
[1772975446405,0.01401997,67267.0,67252.0,0.07582711]
[1772975446821,0.01401997,67267.0,67252.0,0.07434711]
[1772975447019,0.01401997,67267.0,67253.0,0.00148]
[1772975448724,0.01412785,67265.0,67254.0,0.07434502]
[1772975448925,0.01412785,67263.0,67254.0,0.07434502]
[1772975449951,0.01412785,67263.0,67254.0,0.07417811]
[1772975451376,0.01412785,67263.0,67255.0,0.01909752]
[1772975451727,0.01412785,67263.0,67255.0,0.01893063]
[1772975452467,0.07432699,67271.0,67255.0,0.01893063]
[1772975452660,0.00148,67270.0,67255.0,0.01893063]
[1772975452861,0.01453733,67269.0,67255.0,0.01893063]
[1772975453095,0.07432879,67269.0,67256.0,0.0743428]
[1772975453294,0.01463529,67268.0,67256.0,0.0743428]
[1772975453512,0.01611529,67268.0,67256.0,0.0743428]
[1772975453680,0.00148,67267.0,67257.0,0.01909752]
[1772975454308,0.00022001,67271.0,67257.0,0.01938022]
[1772975454512,0.00148,67269.0,67257.0,0.01938022]
[1772975454809,0.00170001,67271.0,67257.0,0.01938022]
[1772975455171,0.00170001,67271.0,67258.0,0.07434059]
[1772975455378,0.00170001,67271.0,67259.0,0.02057752]
[1772975455586,0.01473034,67270.0,67259.0,0.00148]
[1772975455991,0.01473034,67270.0,67259.0,0.00131312]
[1772975456194,0.01473034,67270.0,67252.0,0.07434632]
[1772975456393,0.01473034,67270.0,67253.0,0.02]
[1772975457511,0.07432844,67269.0,67254.0,0.07434502]
[1772975457675,0.01482225,67268.0,67255.0,0.02]
[1772975460453,0.0745461,67272.0,67257.0,0.02]
[1772975460756,0.01500409,67271.0,67257.0,0.02148]
[1772975462741,0.08933089,67271.0,67258.0,0.07434059]
[1772975463112,0.00039081,67275.0,67258.0,0.07434059]
[1772975463113,0.00148,67277.0,67263.0,0.01992183]
[1772975463316,0.07453755,67279.0,67264.0,0.02140183]
[1772975463317,0.00170001,67279.0,67264.0,0.02140183]
[1772975463569,1e-08,67279.0,67267.0,0.00015886]
[1772975463840,0.07431755,67279.0,67268.0,0.01992183]
[1772975464015,0.07431755,67279.0,67268.0,0.02140183]
[1772975464414,1e-08,67279.0,67268.0,0.01992183]
[1772975464595,1e-08,67279.0,67268.0,0.02140183]
[1772975464787,0.09054273,67279.0,67268.0,0.02140183]
[1772975465033,0.09054273,67279.0,67270.0,0.01992183]
[1772975465545,0.01622511,67279.0,67270.0,0.01992183]
[1772975466361,0.01635391,67279.0,67270.0,0.01992183]
[1772975467162,0.01635391,67279.0,67271.0,0.09421469]
[1772975467867,0.07431849,67278.0,67271.0,0.09421469]
[1772975468078,0.09035811,67278.0,67271.0,0.09404781]
[1772975468235,0.09048691,67278.0,67271.0,0.09404781]
[1772975469874,0.01616842,67278.0,67271.0,0.09404781]
[1772975470473,0.09048698,67278.0,67271.0,0.09404781]
[1772975470787,0.09048698,67278.0,67271.0,0.09321363]
[1772975471014,0.09048698,67278.0,67267.0,0.00148]
[1772975471015,0.07444736,67278.0,67267.0,0.07581001]
[1772975471330,0.01623366,67275.0,67267.0,0.07581001]
[1772975471657,0.01623366,67275.0,67267.0,0.07433001]
[1772975472105,0.01623366,67275.0,67267.0,0.09344658]
[1772975472252,0.01636246,67275.0,67267.0,0.09344658]
[1772975474793,0.01636246,67275.0,67268.0,0.01911657]
[1772975475247,0.01636246,67275.0,67269.0,0.07432844]
[1772975481390,0.0001288,67275.0,67269.0,0.07432844]
[1772975483501,0.0166491,67275.0,67269.0,0.07432844]
[1772975486752,0.0166491,67275.0,67270.0,0.01911657]
[1772975486753,0.0001288,67275.0,67270.0,0.01911657]
[1772975487277,0.0001288,67275.0,67263.0,0.17818886]
[1772975487278,0.01655488,67274.0,67264.0,0.07581396]
[1772975487499,0.01658798,67272.0,67264.0,0.07581396]
[1772975487687,0.01658798,67272.0,67264.0,0.07433396]
[1772975488366,0.01658798,67272.0,67265.0,0.00148]
[1772975488539,0.01658798,67272.0,67264.0,0.07581396]
[1772975488939,0.07431874,67278.0,67264.0,0.07581396]
[1772975488940,0.0747157,67279.0,67265.0,0.01911657]
[1772975489101,0.07471467,67279.0,67267.0,0.01911657]
[1772975489303,0.00039721,67279.0,67267.0,0.01520374]
[1772975489493,0.00187721,67279.0,67269.0,0.01911657]
[1772975489692,0.00187721,67279.0,67268.0,0.07432954]
[1772975489693,0.0743124,67284.0,67268.0,0.07432954]
[1772975489922,0.07454003,67283.0,67271.0,0.01911657]
[1772975491343,0.09156405,67283.0,67271.0,0.01911657]
[1772975491771,0.09156405,67283.0,67273.0,0.01911657]
[1772975493794,0.09178406,67283.0,67273.0,0.07432307]
[1772975493993,0.09178406,67283.0,67274.0,0.01969714]
[1772975496299,0.09178406,67283.0,67274.0,0.07432287]
[1772975496651,0.09178406,67283.0,67275.0,0.01969714]
[1772975497855,0.01715052,67282.0,67271.0,0.07580603]
[1772975499013,0.07431518,67281.0,67271.0,0.07580603]
[1772975499217,0.01706725,67280.0,67271.0,0.07580603]
[1772975499420,0.07431518,67281.0,67272.0,0.01969714]
[1772975501369,0.07431518,67282.0,67274.0,0.01969714]
[1772975502875,0.00022001,67280.0,67274.0,0.01969714]
[1772975504326,0.00022001,67280.0,67275.0,0.07432181]
[1772975504465,0.00022001,67280.0,67276.0,0.01969714]
[1772975504672,0.07453731,67280.0,67276.0,0.01969714]
[1772975505517,0.00022001,67280.0,67276.0,0.01969714]
[1772975506219,0.07431849,67278.0,67270.0,0.07432696]
[1772975506525,0.01693389,67277.0,67270.0,0.07432696]
[1772975508635,0.01693389,67277.0,67270.0,0.0940241]
[1772975510902,0.01693389,67277.0,67270.0,0.0942241]
[1772975513150,0.00170001,67280.0,67271.0,0.01969714]
[1772975514176,0.07431739,67279.0,67271.0,0.01969714]
[1772975514393,0.07453639,67280.0,67271.0,0.01969714]
[1772975515302,0.07453639,67280.0,67270.0,0.07452632]
[1772975515468,0.01688076,67279.0,67270.0,0.07452632]
[1772975517497,0.09119925,67278.0,67270.0,0.0002]
[1772975518889,0.07431849,67279.0,67270.0,0.0002]
[1772975519084,0.07431849,67279.0,67270.0,0.01989714]
[1772975519521,0.07431849,67279.0,67271.0,0.07432623]
[1772975519895,0.00022001,67278.0,67271.0,0.07432623]
[1772975520645,0.0743162,67281.0,67271.0,0.07432623]
[1772975521363,0.0911954,67282.0,67271.0,0.07432623]
[1772975521532,0.00148,67283.0,67275.0,0.01691982]
[1772975521731,0.00148,67283.0,67276.0,0.01969714]
[1772975522052,0.00148,67282.0,67276.0,0.01969714]
[1772975522279,0.00022001,67285.0,67276.0,0.01975616]
[1772975522498,0.00170001,67285.0,67277.0,0.01969714]
[1772975522823,0.00022001,67285.0,67277.0,0.01969714]
[1772975523791,0.00022001,67285.0,67278.0,0.07431849]
[1772975524299,0.00022001,67286.0,67278.0,0.07431849]
[1772975524471,0.00022001,67288.0,67279.0,0.01991006]
[1772975525259,0.00052001,67291.0,67280.0,0.01991006]
[1772975525455,0.00052001,67291.0,67281.0,0.01991006]
[1772975525711,0.00038761,67292.0,67282.0,0.07431408]
[1772975525878,0.07578293,67294.0,67283.0,0.01991006]
[1772975526081,0.00575,67295.0,67283.0,0.02139006]